Workbook

Sheet Sheet1
A1: Profit and Loss by Month
A2: 2702 Greystone Road
A3: August 1, 2024-July 31, 2025
A5: Distribution account | B5: August 2024 | C5: September 2024 | D5: October 2024 | E5: November 2024 | F5: December 2024 | G5: January 2025 | H5: February 2025 | I5: March 2025 | J5: April 2025 | K5: May 2025 | L5: June 2025 | M5: July 2025 | N5: Total
A6: Income
A7: Rental Income - Greystone Rd
A8: Double Diamond | B8: 3470 | C8: 3470 | D8: 3470 | E8: 3470 | F8: 3470 | G8: 3470 | H8: 3470 | I8: 3470 | J8: 3470 | K8: 3470 | L8: 18738 | N8: =SUM(B8:M8) -> 53438
A9: Orange Thread Live | B9: 5876.15 | C9: 5876.15 | D9: 5876.15 | E9: 5876.15 | F9: 5876.15 | G9: 5876.15 | H9: 5876.15 | I9: 5876.15 | J9: 5876.15 | K9: 5876.15 | L9: 5876.15 | M9: 6917.43 | N9: =SUM(B9:M9) -> 71555.08
A10: Tenant Utilities Reimbursement - Greystone | B10: 223.56 | C10: 726.33 | D10: 681.71 | E10: 433.92 | F10: 487.86 | G10: 969.38 | H10: 1342.01 | I10: 957.41 | J10: 580.79 | K10: 482.94 | L10: 667.45 | N10: =SUM(B10:M10) -> 7553.36
A11: Total for Rental Income - Greystone Rd | B11: =B7+B8+B9+B10 -> 9569.71 | C11: 10072.48 | D11: 10027.86 | E11: 9780.07 | F11: 9834.01 | G11: 10315.53 | H11: 10688.16 | I11: 10303.56 | J11: 9926.94 | K11: 9829.09 | L11: 25281.6 | M11: 6917.43 | N11: 132546.44
A12: Total for Income | B12: =B11 -> 9569.71 | C12: =C11 -> 10072.48 | D12: 10027.86 | E12: 9780.07 | F12: 9834.01 | G12: 10315.53 | H12: 10688.16 | I12: 10303.56 | J12: 9926.94 | K12: 9829.09 | L12: 25281.6 | M12: 6917.43 | N12: =SUM(B12:M12) -> 132546.44
A13: Cost of Goods Sold
A14: Gross Profit | B14: =B12-B13 -> 9569.71 | C14: 10072.48 | D14: 10027.86 | E14: 9780.07 | F14: 9834.01 | G14: 10315.53 | H14: 10688.16 | I14: 10303.56 | J14: 9926.94 | K14: 9829.09 | L14: 25281.6 | M14: 6917.43 | N14: =SUM(B14:M14) -> 132546.44
A15: Expenses
A16: Insurance | M16: 2429
A17: Interest Expense
A18: Greystone Rd Interest | B18: 3335.7 | C18: 3330.66 | D18: 3218.32 | E18: 3319.96 | F18: 3207.92 | G18: 3309.15 | H18: 3303.99 | I18: 2979.55 | J18: 3291.91 | K18: 3180.63 | L18: 3280.82 | M18: 3169.84 | N18: =SUM(B18:M18) -> 38928.45
A19: Total for Interest Expense | B19: =B17+B18 -> 3335.7 | C19: =C17+C18 -> 3330.66 | D19: 3218.32 | E19: 3319.96 | F19: 3207.92 | G19: 3309.15 | H19: 3303.99 | I19: 2979.55 | J19: 3291.91 | K19: 3180.63 | L19: 3280.82 | M19: 3169.84 | N19: =SUM(B19:M19) -> 38928.45
A20: Repairs & Maintenance | B20: 470 | E20: 1240 | G20: 337 | H20: 484.13 | K20: 484.13 | L20: 2050 | N20: =SUM(B20:M20) -> 5065.26
A21: Taxes & Licenses
A22: Property Taxes | J22: 15490.04 | N22: =SUM(B22:M22) -> 15490.04
A23: Total for Taxes & Licenses | B23: =B21+B22 -> 0 | C23: =C21+C22 -> 0 | D23: 0 | E23: 0 | F23: 0 | G23: 0 | H23: 0 | I23: 0 | J23: 15490.04 | K23: 0 | L23: 0 | M23: 0 | N23: =SUM(B23:M23) -> 15490.04
A24: Utilities
A25: Utilities - Electric | B25: 595 | C25: 662 | D25: 451 | E25: 358 | F25: 412 | G25: 894 | H25: 1267 | I25: 881 | J25: 504 | K25: 406 | L25: 398 | M25: 699 | N25: =SUM(B25:M25) -> 7527
A26: Utilities - Security | B26: =412.89*0.25 -> 103.2225 | E26: =412.89*0.25 -> 103.2225 | H26: =412.89*0.25 -> 103.2225 | K26: =412.89*0.25 -> 103.2225 | N26: =SUM(B26:M26) -> 412.89
A27: Utilities - Trash | B27: 37.2 | C27: 37.2 | D27: 37.2 | E27: 37.2 | F27: 37.2 | G27: 37.2 | H27: 37.2 | I27: 37.2 | J27: 37.2 | K27: 37.2 | L27: 37.2 | M27: 37.2 | N27: =SUM(B27:M27) -> 446.4
A28: Utilities - Water | B28: 50.19 | C28: 39.15 | D28: 39.15 | E28: 39.15 | F28: 39.15 | G28: 39.15 | H28: 39.15 | I28: 40.17 | J28: 40.17 | K28: 40.23 | L28: 232.92 | M28: 40.23 | N28: =SUM(B28:M28) -> 678.81
A29: Total for Utilities | B29: =B24+B25+B26+B27+B28 -> 785.6125 | C29: =C24+C25+C26+C27+C28 -> 738.35 | D29: =D24+D25+D26+D27+D28 -> 527.35 | E29: =E24+E25+E26+E27+E28 -> 537.5725 | F29: =F24+F25+F26+F27+F28 -> 488.35 | G29: =G24+G25+G26+G27+G28 -> 970.35 | H29: =H24+H25+H26+H27+H28 -> 1446.5725 | I29: =I24+I25+I26+I27+I28 -> 958.37 | J29: =J24+J25+J26+J27+J28 -> 581.37 | K29: =K24+K25+K26+K27+K28 -> 586.6525 | L29: =L24+L25+L26+L27+L28 -> 668.12 | M29: =M24+M25+M26+M27+M28 -> 776.43 | N29: =SUM(B29:M29) -> 9065.1
A30: Total for Expenses | B30: =B16+B19+B20+B23+B29 -> 4591.3125 | C30: =C16+C19+C20+C23+C29 -> 4069.01 | D30: =D16+D19+D20+D23+D29 -> 3745.67 | E30: =E16+E19+E20+E23+E29 -> 5097.5325 | F30: =F16+F19+F20+F23+F29 -> 3696.27 | G30: =G16+G19+G20+G23+G29 -> 4616.5 | H30: =H16+H19+H20+H23+H29 -> 5234.6925 | I30: =I16+I19+I20+I23+I29 -> 3937.92 | J30: =J16+J19+J20+J23+J29 -> 19363.32 | K30: =K16+K19+K20+K23+K29 -> 4251.4125 | L30: =L16+L19+L20+L23+L29 -> 5998.94 | M30: =M16+M19+M20+M23+M29 -> 6375.27 | N30: =SUM(B30:M30) -> 70977.85
A31: Net Operating Income | B31: =B14-B30 -> 4978.3975 | C31: =C14-C30 -> 6003.47 | D31: =D14-D30 -> 6282.19 | E31: =E14-E30 -> 4682.5375 | F31: =F14-F30 -> 6137.74 | G31: =G14-G30 -> 5699.03 | H31: =H14-H30 -> 5453.4675 | I31: =I14-I30 -> 6365.64 | J31: =J14-J30 -> -9436.38 | K31: =K14-K30 -> 5577.6775 | L31: =L14-L30 -> 19282.66 | M31: =M14-M30 -> 542.16 | N31: =SUM(B31:M31) -> 61568.59
A32: Net Income | B32: =B31 -> 4978.3975 | C32: =C31 -> 6003.47 | D32: 6282.19 | E32: 4682.5375 | F32: 6137.74 | G32: 5699.03 | H32: 5453.4675 | I32: 6365.64 | J32: -9436.38 | K32: 5577.6775 | L32: 19282.66 | M32: 542.16 | N32: =SUM(B32:M32) -> 61568.59
A36: Accrual Basis Monday, August 04, 2025 05:27 PM GMTZ
